bitfinex-derivatives/quotes_SOLF0:USTF0_20260215
["timestamp","ask_amount","ask_price","bid_price","bid_amount"]
[1771177871292,10.466,86.049,85.991,14.99133136]
[1771177871499,34.85,86.087,86.001,14.99133136]
[1771177871696,16.10203962,86.091,86.001,14.99133136]
[1771177871994,10.4647,86.059,86.003,14.99133136]
[1771177872200,16.10203962,86.091,86.003,14.99133136]
[1771177872397,16.10203962,86.091,85.98,7.42206816]
[1771177872398,10.4622,86.08,86.021,25.46063136]
[1771177872702,10.4622,86.08,86.022,14.99133136]
[1771177873090,16.10203962,86.112,86.04,7.42206816]
[1771177873290,16.10203962,86.112,86.041,14.99133136]
[1771177873493,10.4617,86.084,86.02,7.42206816]
[1771177873795,10.4617,86.084,85.976,34.85]
[1771177873796,15.98962318,86.092,86.0,7.42206816]
[1771177874003,15.98962318,86.092,86.001,15.89824162]
[1771177874299,10.4628,86.075,86.004,15.89824162]
[1771177874496,15.98962318,86.092,86.004,15.89824162]
[1771177874689,15.98962318,86.079,86.004,15.89824162]
[1771177875297,15.98962318,86.079,85.991,15.89824162]
[1771177875698,15.98962318,86.079,85.992,10.4728]
[1771177875897,15.98962318,86.079,85.991,15.89824162]
[1771177876297,10.4661,86.048,85.991,15.89824162]
[1771177876496,15.98962318,86.079,85.991,15.89824162]
[1771177876893,10.4634,86.07,86.004,15.89824162]
[1771177877302,10.4634,86.07,86.01,7.42206816]
[1771177877497,10.4634,86.07,86.01,23.32030978]
[1771177877802,10.4645,86.061,86.01,15.89824162]
[1771177878201,10.4633,86.071,86.01,15.89824162]
[1771177878506,15.98962318,86.099,86.021,15.89824162]
[1771177878705,7.42206816,86.1,85.997,15.89824162]
[1771177878706,10.4643,86.063,85.997,15.89824162]
[1771177879805,10.4643,86.063,86.002,10.4716]
[1771177880104,23.41169134,86.1,86.002,15.89824162]
[1771177880404,10.4617,86.085,86.023,15.89824162]
[1771177880608,15.98962318,86.1,86.031,15.89824162]
[1771177881397,10.4602,86.096,86.032,15.89824162]
[1771177881609,15.98962318,86.12,86.032,15.89824162]
[1771177882007,15.98962318,86.154,86.071,15.89824162]
[1771177882406,10.4535,86.152,86.082,26.36004162]
[1771177882705,8.32618547,86.198,86.1,7.42206816]
[1771177882910,10.4479,86.198,86.14,7.42206816]
[1771177883209,10.35166495,86.278,86.141,15.89824162]
[1771177883412,15.98962318,86.239,86.161,15.89824162]
[1771177883612,10.4446,86.225,86.161,15.89824162]
[1771177884111,15.98962318,86.219,86.136,15.89824162]
[1771177884713,15.98962318,86.186,86.11,7.42206816]
[1771177885306,10.4501,86.18,86.11,7.42206816]
[1771177885506,7.42206816,86.2,86.111,15.89824162]
[1771177885707,15.98962318,86.209,86.111,15.89824162]
[1771177886107,15.98962318,86.209,86.13,7.42206816]
[1771177886909,15.98962318,86.206,86.13,23.32030978]
[1771177887208,7.42206816,86.22,86.11,7.42206816]
[1771177887209,15.98962318,86.199,86.11,7.42206816]
[1771177887406,10.4487,86.191,86.111,10.4583]
[1771177887808,15.98962318,86.199,86.131,15.89824162]
[1771177888017,15.98962318,86.219,86.134,15.89824162]
[1771177888512,10.446,86.214,86.134,26.35374162]
[1771177888914,10.446,86.214,86.138,10.455]
[1771177889109,10.4439,86.231,86.15,7.42206816]
[1771177889314,15.98962318,86.23,86.151,15.89824162]
[1771177889703,15.98962318,86.219,86.151,15.89824162]
[1771177889910,15.98962318,86.219,86.138,10.455]
[1771177890305,15.98962318,86.219,86.149,10.4537]
[1771177890510,15.98962318,86.219,86.11,7.42206816]
[1771177890511,7.42206816,86.24,86.151,15.89824162]
[1771177890706,15.98962318,86.239,86.151,15.89824162]
[1771177891017,15.98962318,86.215,86.131,15.89824162]
[1771177891314,15.98962318,86.215,86.15,23.32030978]
[1771177891506,10.4433,86.235,86.153,15.89824162]
[1771177891912,15.98962318,86.238,86.17,7.38195984]
[1771177892116,15.98962318,86.238,86.17,17.83305984]
[1771177893018,10.4418,86.248,86.17,17.83305984]
[1771177893019,10.4418,86.248,86.174,15.89824162]
[1771177893514,10.4418,86.248,86.17,7.38195984]
[1771177893515,23.37158302,86.28,86.191,15.89824162]
[1771177893719,15.98962318,86.28,86.191,15.89824162]
[1771177894115,15.98962318,86.28,86.21,7.38195984]
[1771177894519,15.98962318,86.28,86.203,15.89824162]
[1771177894520,15.98962318,86.279,86.203,15.89824162]
[1771177895020,15.98962318,86.269,86.19,7.38195984]
[1771177895209,15.98962318,86.269,86.191,15.89824162]
[1771177895413,15.98962318,86.293,86.211,15.89824162]
[1771177895720,15.98962318,86.299,86.21,7.38195984]
[1771177895911,15.98962318,86.299,86.16,7.38195984]
[1771177895912,15.98962318,86.299,86.23,7.38195984]
[1771177896114,15.98962318,86.299,86.211,15.89824162]
[1771177896417,15.98962318,86.286,86.211,15.89824162]
[1771177896819,26.42692318,86.286,86.213,15.89824162]
[1771177897120,15.98962318,86.285,86.213,15.89824162]
[1771177897517,26.42692318,86.285,86.213,15.89824162]
[1771177897823,15.98962318,86.309,86.221,15.89824162]
[1771177898019,10.4359,86.297,86.234,10.4434]
[1771177898225,15.98962318,86.309,86.24,7.38195984]
[1771177898412,15.98962318,86.309,86.241,15.89824162]
[1771177898613,15.98962318,86.309,86.255,10.4408]
[1771177898812,15.98962318,86.309,86.241,15.89824162]
[1771177899017,15.98962318,86.334,86.26,7.38195984]
[1771177899318,15.98962318,86.334,86.268,10.4392]
[1771177899519,15.98962318,86.381,86.3,7.38195984]
[1771177899719,10.4273,86.368,86.3,7.38195984]
[1771177899920,15.98962318,86.381,86.301,15.89824162]
[1771177900322,15.98962318,86.378,86.3,7.38195984]
[1771177900521,15.98962318,86.378,86.281,15.89824162]
[1771177900725,15.98962318,86.359,86.26,23.28020146]
[1771177900927,10.4317,86.331,86.263,15.89824162]
[1771177901122,15.98962318,86.359,86.281,15.89824162]
[1771177901420,15.98962318,86.359,86.234,92.36]
[1771177901421,10.431,86.337,86.26,7.38195984]
[1771177901621,15.98962318,86.337,86.26,7.38195984]
[1771177901822,15.98962318,86.337,86.24,7.38195984]
[1771177902015,15.98962318,86.337,86.26,7.38195984]
[1771177902220,162.1861,86.377,86.24,7.38195984]
[1771177902221,15.98962318,86.329,86.24,7.38195984]
[1771177902421,15.98962318,86.329,86.241,15.89824162]
[1771177902820,15.98962318,86.3,86.219,15.89824162]
[1771177903122,15.98962318,86.3,86.221,15.89824162]
[1771177903720,10.4358,86.298,86.222,15.78467835]
[1771177904024,7.38195984,86.31,86.222,15.78467835]
[1771177904219,10.4343,86.31,86.236,15.78467835]
[1771177904523,16.23389391,86.323,86.241,15.78467835]
[1771177904822,7.38195984,86.33,86.217,15.78467835]
[1771177904823,10.4384,86.276,86.217,15.78467835]
[1771177905735,16.23389391,86.288,86.217,15.78467835]
[1771177905736,26.67089391,86.288,86.217,15.78467835]
[1771177907724,10.4383,86.277,86.217,15.78467835]
[1771177910831,10.4396,86.266,86.2,7.38195984]
[1771177911138,10.4396,86.266,86.201,10.4474]
[1771177911334,10.4396,86.266,86.202,15.78467835]
[1771177911840,10.4383,86.277,86.204,15.78467835]
[1771177912336,16.23389391,86.31,86.243,15.78467835]
[1771177913128,10.4344,86.309,86.245,10.4421]
[1771177914843,10.4332,86.32,86.249,15.78467835]
[1771177915042,16.23389391,86.329,86.249,15.78467835]
[1771177915745,10.433,86.321,86.251,10.4414]
[1771177915936,16.23389391,86.329,86.252,15.78467835]
[1771177916344,16.23389391,86.329,86.269,10.4392]
[1771177916532,16.23389391,86.329,86.26,7.38195984]
[1771177916935,285.94,86.382,86.26,7.38195984]
[1771177916936,10.4313,86.335,86.262,15.78467835]
[1771177917135,16.23389391,86.349,86.262,15.78467835]
[1771177917343,16.23389391,86.349,86.285,10.4372]
[1771177917344,10.4301,86.345,86.285,10.4372]
[1771177917539,285.84,86.394,86.28,7.38195984]
[1771177917540,16.23389391,86.37,86.286,15.78467835]
[1771177918044,16.23389391,86.37,86.29,15.78467835]
[1771177918453,16.23389391,86.37,86.301,15.78467835]
[1771177919052,10.4274,86.367,86.307,10.4346]
[1771177919646,10.4286,86.357,86.301,15.78467835]
[1771177919852,16.23389391,86.37,86.301,15.78467835]
[1771177920051,16.23389391,86.37,86.279,15.78467835]
[1771177920248,16.23389391,86.359,86.28,7.38195984]
[1771177920553,16.23389391,86.359,86.281,15.78467835]
[1771177921453,7.38195984,86.36,86.281,15.78467835]
[1771177921454,16.23389391,86.346,86.281,15.78467835]
[1771177922346,10.4282,86.361,86.291,10.4365]
[1771177922651,16.23389391,86.367,86.281,15.78467835]
[1771177923453,16.23389391,86.362,86.289,10.4367]
[1771177923951,16.23389391,86.362,86.3,10.4355]
[1771177924847,26.66189391,86.362,86.3,10.4355]
[1771177926052,10.4294,86.351,86.289,15.78467835]
[1771177926251,10.4294,86.351,86.288,10.4369]
[1771177926252,7.38195984,86.34,86.246,15.78467835]
[1771177926453,16.23389391,86.339,86.246,15.78467835]
[1771177926662,16.23389391,86.359,86.278,15.78467835]
[1771177926954,16.23389391,86.339,86.256,15.78467835]
[1771177927253,10.4331,86.32,86.256,15.78467835]
[1771177927645,16.23389391,86.339,86.256,15.78467835]
[1771177927845,16.23389391,86.339,86.275,15.78467835]
[1771177928049,16.23389391,86.339,86.28,7.38195984]
[1771177928257,16.23389391,86.379,86.281,15.78467835]
[1771177928453,16.23389391,86.365,86.296,10.4359]
[1771177928849,16.23389391,86.365,86.281,15.78467835]
[1771177929155,10.4295,86.35,86.295,10.436]
[1771177929450,16.23389391,86.365,86.281,15.78467835]
[1771177929656,16.23389391,86.359,86.281,15.78467835]
[1771177929852,10.4307,86.34,86.281,15.78467835]
[1771177930058,16.23389391,86.359,86.281,15.78467835]
[1771177930252,23.61585375,86.38,86.281,15.78467835]
[1771177930451,13.70655864,86.441,86.28,7.38195984]
[1771177930452,16.23389391,86.404,86.321,15.78467835]
[1771177931152,16.23389391,86.404,86.352,10.4292]
[1771177931453,7.38195984,86.44,86.341,15.78467835]
[1771177931659,16.23389391,86.439,86.36,7.38195984]
[1771177931859,16.23389391,86.439,86.361,15.78467835]
[1771177932647,10.4206,86.424,86.361,15.78467835]
[1771177932848,16.23389391,86.424,86.361,15.78467835]
[1771177933047,16.23389391,86.455,86.361,15.78467835]
[1771177933458,10.4203,86.426,86.361,15.78467835]
[1771177933654,16.45907309,86.425,86.34,15.15285826]
[1771177933854,16.45907309,86.425,86.297,162.3356]
[1771177933855,16.45907309,86.416,86.319,15.15285826]
[1771177934858,10.4242,86.394,86.336,10.431]
[1771177935053,16.45907309,86.416,86.337,15.15285826]
[1771177935758,16.45907309,86.405,86.337,15.15285826]
[1771177935956,16.45907309,86.399,86.311,15.15285826]
[1771177936149,10.4258,86.381,86.315,10.4335]
[1771177936759,10.4268,86.372,86.315,10.4335]
[1771177936962,16.45907309,86.371,86.301,10.4352]
[1771177937367,16.45907309,86.361,86.29,15.15285826]
[1771177937862,16.45907309,86.359,86.268,15.15285826]
[1771177938061,26.88817309,86.353,86.282,10.4376]
[1771177938374,16.45907309,86.352,86.282,10.4376]
[1771177938561,16.45907309,86.352,86.292,10.4364]
[1771177938758,16.45907309,86.374,86.272,15.15285826]
[1771177939463,10.4285,86.358,86.294,15.15285826]
[1771177939863,16.45907309,86.374,86.294,15.15285826]
[1771177940258,26.88627309,86.369,86.301,10.4353]
[1771177940459,16.45907309,86.368,86.294,15.15285826]
[1771177941667,10.4274,86.367,86.304,10.4349]
[1771177942476,16.45907309,86.339,86.252,15.15285826]
[1771177942768,16.45907309,86.349,86.271,15.15285826]
[1771177943062,16.45907309,86.349,86.231,15.15285826]
[1771177943063,16.45907309,86.324,86.231,15.15285826]
[1771177943265,7.38195984,86.34,86.251,15.15285826]
[1771177943469,7.38195984,86.34,86.265,15.15285826]
[1771177943658,16.45907309,86.339,86.244,15.15285826]
[1771177943973,10.4328,86.323,86.26,10.4403]
[1771177944271,16.45907309,86.339,86.261,15.15285826]
[1771177945062,16.45907309,86.339,86.278,25.59085826]
[1771177945258,16.45907309,86.339,86.23,7.38195984]
[1771177945259,16.45907309,86.339,86.251,15.15285826]
[1771177945863,16.45907309,86.339,86.252,25.59405826]
[1771177946173,16.45907309,86.339,86.253,15.15285826]
[1771177946373,16.45907309,86.339,86.279,10.438]
[1771177946778,16.45907309,86.339,86.278,15.15285826]
[1771177946966,16.45907309,86.359,86.278,15.15285826]
[1771177947271,23.84103293,86.38,86.281,15.15285826]
[1771177947470,16.45907309,86.379,86.281,15.15285826]
[1771177947661,10.4287,86.357,86.298,10.4357]
[1771177947862,16.45907309,86.379,86.281,15.15285826]
[1771177948069,16.45907309,86.359,86.281,15.15285826]
[1771177948378,16.45907309,86.356,86.275,10.4384]
[1771177948967,10.432,86.329,86.275,10.4384]
[1771177949665,10.4296,86.349,86.26,15.15285826]
[1771177949866,10.4296,86.349,86.271,15.15285826]
[1771177950266,16.45907309,86.339,86.25,22.5348181]
[1771177950470,16.45907309,86.339,86.251,15.15285826]
[1771177951573,16.45907309,86.359,86.272,15.15285826]
[1771177951968,10.4299,86.347,86.288,10.4368]
[1771177953073,10.4299,86.347,86.294,10.4362]
[1771177953371,10.4286,86.357,86.294,10.4362]
[1771177953572,16.45907309,86.359,86.289,15.15285826]
[1771177954078,16.45907309,86.359,86.294,10.4362]
[1771177954977,16.45907309,86.359,86.289,15.15285826]
[1771177955672,16.45907309,86.349,86.268,15.15285826]
[1771177956181,10.4319,86.33,86.273,10.4387]
[1771177956469,10.4319,86.33,86.268,15.15285826]
[1771177956677,16.45907309,86.326,86.231,15.15285826]
[1771177956876,23.82408176,86.31,86.231,15.15285826]
[1771177957171,16.45907309,86.31,86.231,15.15285826]
[1771177957573,10.4345,86.308,86.231,15.15285826]
[1771177957772,16.45907309,86.329,86.231,15.15285826]
[1771177958174,10.4324,86.326,86.269,25.59205826]
[1771177959375,10.4308,86.339,86.276,15.15285826]
[1771177960582,10.4297,86.348,86.29,10.4366]
[1771177960776,16.45907309,86.349,86.276,15.15285826]
[1771177961475,10.4307,86.34,86.289,10.4367]
[1771177963071,10.4307,86.34,86.276,15.15285826]
[1771177963072,10.4307,86.34,86.28,10.4378]
[1771177963275,16.45907309,86.349,86.276,15.15285826]
[1771177963476,16.45907309,86.349,86.288,10.4368]
[1771177963676,16.45907309,86.349,86.276,15.15285826]
[1771177963873,10.4322,86.328,86.276,15.15285826]
[1771177964077,16.45907309,86.349,86.276,15.15285826]
[1771177965483,16.45907309,86.349,86.299,10.4355]
[1771177966082,16.45907309,86.349,86.29,15.38963183]
[1771177966378,16.46775533,86.369,86.29,15.38963183]
[1771177966680,10.4279,86.363,86.31,10.4342]
[1771177967380,10.4267,86.373,86.318,10.4332]
[1771177968984,16.46775533,86.383,86.319,15.38963183]
[1771177969185,16.46775533,86.383,86.268,20.8785]
[1771177969186,16.46775533,86.383,86.291,15.38963183]
[1771177969687,16.46775533,86.383,86.312,10.4339]
[1771177970187,10.4266,86.374,86.321,10.4329]
[1771177970676,10.4277,86.365,86.28,7.36500867]
[1771177970887,16.46775533,86.364,86.291,15.38963183]
[1771177971473,16.46775533,86.364,86.308,10.4344]
[1771177971474,10.4282,86.361,86.308,10.4344]
[1771177971675,7.36500867,86.39,86.268,20.8785]
[1771177971676,16.46775533,86.387,86.309,15.38963183]
[1771177972086,7.36500867,86.39,86.309,15.38963183]
[1771177972087,16.46775533,86.364,86.309,15.38963183]
[1771177972786,16.46775533,86.364,86.31,10.4342]
[1771177973275,10.4279,86.363,86.309,15.38963183]
[1771177973474,16.46775533,86.364,86.288,15.38963183]
[1771177973885,26.89545533,86.364,86.307,10.4345]
[1771177974081,26.89545533,86.364,86.307,25.82413183]
[1771177975181,26.89545533,86.364,86.27,7.36500867]
[1771177975182,26.89545533,86.364,86.312,10.434]
[1771177975377,26.89545533,86.364,86.308,15.38963183]
[1771177975590,10.4266,86.374,86.308,15.38963183]
[1771177976987,7.36500867,86.39,86.261,20.8804]
[1771177976988,16.46775533,86.362,86.271,15.38963183]
[1771177978185,10.4274,86.367,86.313,10.4338]
[1771177978989,23.832764,86.38,86.29,7.36500867]
[1771177978990,10.4262,86.377,86.317,15.38963183]
[1771177979193,16.46775533,86.399,86.317,15.38963183]
[1771177979593,16.46775533,86.399,86.272,34.85]
[1771177979594,10.4252,86.385,86.33,25.82143183]
[1771177979788,16.46775533,86.399,86.33,15.38963183]
[1771177981287,16.46775533,86.399,86.311,15.38963183]
[1771177982392,10.4251,86.386,86.336,10.431]
[1771177982793,16.46775533,86.399,86.328,15.38963183]
[1771177983198,16.46775533,86.399,86.331,15.38963183]
[1771177983900,16.46775533,86.418,86.344,15.38963183]
[1771177984200,16.46775533,86.418,86.351,15.38963183]
[1771177984396,10.4221,86.411,86.361,10.4281]
[1771177984589,16.46775533,86.418,86.351,15.38963183]
[1771177985594,10.4236,86.399,86.351,15.38963183]
[1771177986095,16.46775533,86.429,86.351,15.38963183]
[1771177987195,16.46775533,86.429,86.365,15.38963183]
[1771177987596,16.46775533,86.429,86.35,7.36500867]
[1771177987597,16.46775533,86.449,86.371,15.38963183]
[1771177988700,10.4189,86.438,86.376,10.4262]
[1771177988902,10.4189,86.438,86.37,7.36500867]
[1771177988903,16.46775533,86.449,86.377,15.38963183]
[1771177989297,10.4195,86.433,86.379,10.4259]
[1771177989493,16.46775533,86.449,86.379,15.38963183]
[1771177990397,10.4191,86.436,86.379,15.38963183]
[1771177990606,16.46775533,86.435,86.359,15.38963183]
[1771177991102,10.4214,86.417,86.368,10.4272]
[1771177991499,16.46775533,86.435,86.359,15.38963183]
[1771177992100,10.4203,86.426,86.366,10.4274]
[1771177992293,16.46775533,86.425,86.359,15.38963183]
[1771177992497,16.46775533,86.425,86.277,11.63]
[1771177992498,16.46775533,86.423,86.33,7.36500867]
[1771177992701,16.46775533,86.409,86.33,7.36500867]
[1771177993011,10.4237,86.398,86.338,10.4308]
[1771177994010,15.51851453,86.392,86.325,10.4324]
[1771177994203,15.51851453,86.407,86.331,15.43371406]
[1771177994404,15.51851453,86.407,86.33,7.36500867]
[1771177994405,15.51851453,86.406,86.313,15.43371406]
[1771177994799,10.40078798,86.45,86.313,15.43371406]
[1771177994800,10.4267,86.373,86.315,10.4335]
[1771177995207,15.51851453,86.38,86.313,15.43371406]
[1771177995402,162.0497,86.45,86.313,15.43371406]
[1771177995403,15.51851453,86.406,86.313,15.43371406]
[1771177995608,15.51851453,86.406,86.331,15.43371406]
[1771177996104,10.4243,86.393,86.331,15.43371406]
[1771177996301,15.51851453,86.392,86.331,15.43371406]
[1771177996803,15.51851453,86.378,86.311,15.43371406]
[1771177996997,15.51851453,86.378,86.29,7.36500867]
[1771177997205,15.51851453,86.369,86.291,15.43371406]
[1771177997604,15.51851453,86.366,86.291,15.43371406]
[1771177998203,15.51851453,86.389,86.301,15.43371406]
[1771177998811,10.4271,86.37,86.311,15.43371406]
[1771177999005,15.51851453,86.389,86.311,15.43371406]
[1771177999202,15.51851453,86.389,86.321,15.43371406]
[1771177999602,162.0594,86.445,86.32,7.36500867]
[1771177999603,23.89318575,86.456,86.334,15.43371406]
[1771177999811,15.51851453,86.439,86.351,15.43371406]
[1771178000109,15.51851453,86.419,86.341,15.43371406]
[1771178000309,10.4197,86.431,86.367,10.4273]
[1771178001014,15.51851453,86.439,86.368,15.43371406]
[1771178001512,15.51851453,86.439,86.371,10.4268]
[1771178001904,15.51851453,86.439,86.368,15.43371406]
[1771178002811,10.4205,86.425,86.368,15.43371406]
[1771178003112,15.51851453,86.439,86.368,15.43371406]
[1771178003307,15.51851453,86.437,86.372,10.4267]
[1771178003503,15.51851453,86.437,86.36,7.36500867]
[1771178003813,7.36500867,86.45,86.348,15.43371406]
[1771178003814,15.51851453,86.429,86.348,15.43371406]
[1771178004713,15.51851453,86.421,86.35,10.4293]
[1771178005112,15.51851453,86.421,86.351,15.43371406]
[1771178005914,15.51851453,86.421,86.361,10.428]
[1771178006213,15.51851453,86.443,86.361,15.43371406]
[1771178007214,10.4204,86.425,86.361,15.43371406]
[1771178007711,25.93531453,86.455,86.39,7.36500867]
[1771178007905,276.5,86.486,86.385,10.4251]
[1771178007906,15.51851453,86.454,86.385,10.4251]
[1771178008108,15.51851453,86.454,86.37,7.36500867]
[1771178008418,15.51851453,86.454,86.371,15.43371406]
[1771178008606,15.51851453,86.454,86.391,15.43371406]
[1771178009118,15.51851453,86.473,86.391,15.43371406]
[1771178010115,15.51851453,86.473,86.41,7.36500867]
[1771178011013,10.418,86.445,86.391,15.43371406]
[1771178011209,15.51851453,86.444,86.378,10.426]
[1771178011508,15.51851453,86.444,86.372,15.43371406]
[1771178011711,7.36500867,86.46,86.36,7.36500867]
[1771178011712,15.51851453,86.431,86.36,7.36500867]
[1771178011914,15.51851453,86.431,86.351,15.43371406]
[1771178012317,15.51851453,86.431,86.35,7.36500867]
[1771178012318,15.51851453,86.455,86.371,15.43371406]
[1771178012823,15.51851453,86.441,86.35,7.36500867]
[1771178013016,15.51851453,86.455,86.351,15.43371406]
[1771178013319,15.51851453,86.439,86.351,15.43371406]
[1771178013614,15.51851453,86.419,86.351,15.43371406]
[1771178014020,25.94101453,86.408,86.351,15.43371406]
[1771178014622,10.4205,86.425,86.351,15.43371406]
[1771178015216,10.4205,86.425,86.365,10.4275]
[1771178016129,15.51851453,86.448,86.376,15.43371406]
[1771178016418,10.419,86.437,86.376,15.43371406]
[1771178016820,15.51851453,86.448,86.377,10.4262]
[1771178017020,10.4188,86.439,86.377,10.4262]
[1771178018019,10.4195,86.433,86.377,10.4262]
[1771178018219,161.9756,86.489,86.357,15.43371406]
[1771178018220,15.51851453,86.429,86.357,15.43371406]
[1771178018627,15.51851453,86.41,86.34,7.35433742]
[1771178018823,15.51851453,86.409,86.338,15.43371406]
[1771178019329,10.4227,86.406,86.348,10.4296]
[1771178021026,10.4238,86.397,86.338,25.86451406]
[1771178021218,15.51851453,86.396,86.319,15.43371406]
[1771178021424,15.51851453,86.389,86.301,15.43371406]
[1771178021625,25.94511453,86.373,86.308,10.4344]
[1771178021832,15.51851453,86.372,86.308,10.4344]
[1771178022023,15.51851453,86.372,86.308,25.86811406]
[1771178022224,15.51851453,86.396,86.309,15.43371406]
[1771178022426,15.51851453,86.396,86.321,15.43371406]
[1771178022827,10.4241,86.395,86.334,25.86501406]
[1771178023036,15.51851453,86.415,86.335,15.43371406]
[1771178023327,16.54390129,86.404,86.343,10.4302]
[1771178023631,16.54390129,86.404,86.316,16.72668617]
[1771178024033,15.68444694,86.403,86.323,15.82697851]
[1771178024536,15.68444694,86.399,86.324,15.82697851]
[1771178025229,15.68444694,86.419,86.34,7.35433742]
[1771178025432,15.68444694,86.419,86.341,15.82697851]
[1771178026733,26.10564694,86.419,86.358,10.4284]
[1771178027236,15.68444694,86.418,86.358,10.4284]
[1771178028531,15.68444694,86.414,86.321,15.82697851]
[1771178028832,15.68444694,86.399,86.321,15.82697851]
[1771178029223,15.68444694,86.399,86.343,15.82697851]
[1771178030132,15.68444694,86.399,86.345,10.43]
[1771178030329,10.4241,86.394,86.33,7.35433742]
[1771178030537,15.68444694,86.393,86.325,15.82697851]
[1771178031539,15.68444694,86.393,86.33,10.4318]
[1771178032837,26.10884694,86.392,86.33,10.4318]
[1771178034536,26.10884694,86.392,86.33,26.25877851]
[1771178034940,15.68444694,86.392,86.333,15.82697851]
[1771178035437,15.68444694,86.411,86.349,10.4295]
[1771178035630,15.68444694,86.43,86.35,15.82697851]
[1771178035834,15.68444694,86.419,86.35,15.82697851]
[1771178036029,15.68444694,86.419,86.331,15.82697851]
[1771178036241,7.35433742,86.42,86.331,15.82697851]
[1771178036242,10.4239,86.396,86.342,10.4303]
[1771178037642,15.68444694,86.401,86.35,10.4293]
[1771178038238,15.68444694,86.398,86.339,10.4307]
[1771178038941,10.4241,86.394,86.331,15.82697851]
[1771178039542,15.68444694,86.398,86.341,10.4305]
[1771178040441,10.4224,86.409,86.351,15.82697851]
[1771178040740,15.68444694,86.417,86.351,15.82697851]
[1771178041542,15.68444694,86.439,86.365,15.82697851]
[1771178042145,10.4201,86.428,86.373,10.4266]
[1771178042345,15.68444694,86.439,86.374,15.82697851]
[1771178043551,15.68444694,86.439,86.391,10.4244]
[1771178043753,15.68444694,86.439,86.374,15.82697851]
[1771178044750,26.10314694,86.439,86.382,10.4255]
[1771178045150,39.57763269,86.456,86.38,7.35433742]
[1771178045342,15.68444694,86.455,86.381,15.82697851]
[1771178046953,10.4176,86.449,86.391,10.4244]
[1771178047651,23.89318575,86.456,86.392,15.82697851]
[1771178047850,23.89318575,86.456,86.4,7.35433742]
[1771178049652,23.89318575,86.456,86.401,15.82697851]
[1771178050550,15.68444694,86.49,86.429,15.82697851]
[1771178051456,15.68444694,86.49,86.436,10.419]
[1771178053552,10.4112,86.501,86.442,26.62337817]
[1771178053755,15.41941371,86.5,86.442,26.62337817]
[1771178054157,15.41941371,86.496,86.442,16.20517817]
[1771178054855,15.41941371,86.496,86.443,10.4182]
[1771178055350,15.41941371,86.496,86.453,10.4169]
[1771178055656,25.82931371,86.513,86.453,10.4169]
[1771178055856,15.41941371,86.513,86.442,16.20517817]
[1771178056450,15.41941371,86.53,86.464,16.20517817]
[1771178056651,291.0,86.577,86.47,7.35433742]
[1771178056652,15.41941371,86.549,86.47,7.35433742]
[1771178056851,15.41941371,86.549,86.471,16.20517817]
[1771178057050,15.41941371,86.549,86.492,10.4123]
[1771178057951,15.41941371,86.549,86.51,10.4101]
[1771178058156,15.41941371,86.567,86.493,16.20517817]
[1771178058764,15.41941371,86.559,86.493,16.20517817]
[1771178059360,15.41941371,86.559,86.504,16.20517817]
[1771178059571,15.41941371,86.594,86.51,7.35433742]
[1771178059859,15.41941371,86.563,86.492,16.20517817]
[1771178060260,15.41941371,86.599,86.492,16.20517817]
[1771178060768,15.41941371,86.566,86.503,16.20517817]
[1771178060966,260.65095043,86.611,86.51,7.35433742]
[1771178060967,15.41941371,86.584,86.51,7.35433742]
[1771178061159,10.4015,86.582,86.511,16.20517817]
[1771178061359,25.82091371,86.582,86.511,16.20517817]
[1771178061561,15.41941371,86.581,86.511,16.20517817]
[1771178061763,15.41941371,86.581,86.515,16.20517817]
[1771178061959,15.41941371,86.599,86.515,16.20517817]
[1771178062155,15.41941371,86.598,86.527,16.20517817]
[1771178062355,7.35433742,86.59,86.509,16.20517817]
[1771178062556,15.41941371,86.589,86.471,16.20517817]
[1771178062755,7.35433742,86.59,86.47,7.35433742]
[1771178062756,10.4041,86.561,86.504,26.61607817]
[1771178063058,15.41941371,86.572,86.504,16.20517817]
[1771178063455,15.41941371,86.572,86.49,7.35433742]
[1771178063456,25.82221371,86.572,86.515,16.20517817]
[1771178064164,15.41941371,86.564,86.497,16.20517817]
[1771178064661,15.41941371,86.556,86.48,16.20517817]
[1771178065260,15.41941371,86.556,86.499,10.4114]
[1771178065461,15.41941371,86.574,86.5,16.20517817]
[1771178065666,15.41941371,86.569,86.471,16.20517817]
[1771178066067,15.41941371,86.562,86.498,10.4115]
[1771178066268,15.41941371,86.562,86.471,16.20517817]
[1771178067270,15.41941371,86.555,86.487,16.20517817]
[1771178068062,15.41941371,86.549,86.45,7.35433742]
[1771178068274,15.41941371,86.529,86.446,16.20517817]
[1771178069370,15.41941371,86.529,86.463,10.4157]
[1771178069971,15.41941371,86.49,86.428,16.20517817]